bitfinex/quotes_ETHUSD_20250507
["timestamp","ask_amount","ask_price","bid_price","bid_amount"]
[1746612395742,7.67541471,1847.5,1847.1,5.41373708]
[1746612395955,7.67541471,1847.5,1847.1,10.90172577]
[1746612396115,5.41303677,1847.4,1847.1,5.41372577]
[1746612396315,5.41303677,1847.4,1846.9,10.90237556]
[1746612396316,6.20300894,1847.3,1846.9,10.90237556]
[1746612396540,6.20300894,1847.3,1846.9,10.9565132]
[1746612396742,0.7897,1847.3,1847.0,5.41407164]
[1746612397355,5.4136504,1847.2,1846.9,5.41427654]
[1746612397526,7.67656377,1847.1,1846.7,5.4148911]
[1746612397727,8.43176377,1847.1,1846.7,5.4148911]
[1746612397959,0.7552,1847.1,1846.7,1.13715814]
[1746612398125,0.7552,1847.1,1846.7,0.05414563]
[1746612398329,0.7552,1847.1,1846.8,5.4146116]
[1746612398527,0.7552,1847.1,1846.8,5.41459153]
[1746612398744,0.7552,1847.1,1846.9,5.41446095]
[1746612398950,0.7552,1847.1,1846.8,5.4145883]
[1746612399121,0.7552,1847.1,1846.9,5.41446963]
[1746612399527,0.7552,1847.1,1846.8,5.41457141]
[1746612400555,0.7552,1847.1,1846.8,5.41455831]
[1746612401140,0.7552,1847.1,1846.9,18.0]
[1746612401458,8.43187025,1847.1,1846.9,18.0]
[1746612401818,5.41418516,1847.0,1846.9,18.0]
[1746612402630,6.17848516,1847.0,1846.9,18.0]
[1746612403843,5.41450699,1846.9,1846.6,5.4153333]
[1746612404057,2.26255991,1846.7,1846.4,10.90485088]
[1746612404263,2.26255991,1846.7,1846.1,6.2785]
[1746612404264,3.04665991,1846.5,1846.1,6.2785]
[1746612404434,3.04665991,1846.5,1846.2,5.41640601]
[1746612404639,3.04665991,1846.5,1846.2,10.83272073]
[1746612404977,3.04665991,1846.5,1846.1,6.40769181]
[1746612405171,8.4624799,1846.5,1846.1,6.40769181]
[1746612405739,8.4624799,1846.5,1846.1,6.40768311]
[1746612405962,2.26255991,1846.4,1846.1,6.40768311]
[1746612406167,7.67851291,1846.4,1846.1,5.4166459]
[1746612406380,2.26255991,1846.4,1846.1,5.4166459]
[1746612406735,2.26255991,1846.4,1846.2,5.41630846]
[1746612407047,3.8327,1846.7,1846.4,5.41594185]
[1746612407252,5.9645614,1846.9,1846.5,5.41545448]
[1746612407253,0.8327,1846.9,1846.5,5.41545448]
[1746612407435,9.13458798,1846.9,1846.5,5.41545448]
[1746612407952,6.71997506,1846.9,1846.6,5.41533459]
[1746612408347,6.71997506,1846.9,1846.5,5.41543062]
[1746612408348,6.71997506,1846.9,1846.5,5.4154187]
[1746612408555,6.71997506,1846.9,1846.6,5.41535527]
[1746612410179,6.71997506,1846.9,1846.6,10.8305802]
[1746612410382,6.71997506,1846.9,1846.6,5.41522493]
[1746612412381,6.19089392,1846.6,1846.2,5.41641818]
[1746612412581,3.0,1846.5,1846.2,5.4163427]
[1746612412792,3.0,1846.5,1846.3,5.41611549]
[1746612413879,0.7753,1846.6,1846.4,5.41594454]
[1746612414045,0.7753,1846.6,1846.3,5.41605149]
[1746612415960,3.0,1846.5,1846.2,5.41638834]
[1746612417787,3.0,1846.5,1846.2,5.41633545]
[1746612417997,3.0,1846.5,1846.3,5.41611959]
[1746612418784,3.0,1846.5,1846.2,5.41633545]
[1746612418991,3.0,1846.5,1846.3,5.41622457]
[1746612419704,3.0,1846.5,1846.2,5.41636662]
[1746612420602,3.0,1846.5,1846.2,5.41636284]
[1746612420791,3.0,1846.5,1846.2,5.41631606]
[1746612420995,8.45326208,1846.6,1846.2,5.41631606]
[1746612422105,8.45326208,1846.6,1846.3,5.41614786]
[1746612422713,8.45326208,1846.6,1846.2,5.41631606]
[1746612422880,3.03785991,1846.6,1846.3,5.41614806]
[1746612423081,3.03785991,1846.6,1846.3,5.41609917]
[1746612423286,3.0,1846.7,1846.5,5.41565123]
[1746612423490,0.8087,1846.8,1846.5,5.41565123]
[1746612423809,3.07125991,1846.8,1846.5,5.41565123]
[1746612424172,2.26255991,1846.6,1846.3,5.41597593]
[1746612424575,0.8044,1846.5,1846.2,5.47051523]
[1746612424797,0.8044,1846.5,1846.3,5.41622353]
[1746612425101,0.8044,1846.5,1846.2,5.41645736]
[1746612425303,7.6785868,1846.4,1846.1,5.41666449]
[1746612425607,7.6785868,1846.4,1845.9,10.83436706]
[1746612425608,3.06695991,1846.2,1845.9,10.83436706]
[1746612426107,3.06695991,1846.2,1845.9,5.41715587]
[1746612426603,3.06695991,1846.2,1845.9,10.83435847]
[1746612427013,3.06695991,1846.2,1845.9,5.41715587]
[1746612427197,6.1976175,1845.9,1845.5,9.05029252]
[1746612427382,2.26255991,1845.8,1845.5,5.41842039]
[1746612427908,0.813,1845.7,1845.4,5.41886694]
[1746612428082,0.813,1845.7,1845.3,9.05085323]
[1746612428413,0.813,1845.7,1845.4,5.41883555]
[1746612428797,0.813,1845.7,1845.3,3.63187213]
[1746612428798,2.26255991,1845.6,1845.3,3.63187213]
[1746612428991,2.26255991,1845.6,1845.3,9.05099113]
[1746612429487,3.7528,1845.5,1845.3,3.63187213]
[1746612429688,3.01535991,1845.4,1845.3,3.63187213]
[1746612430010,10.3695426,1845.4,1845.3,3.63187213]
[1746612430214,15.63210251,1845.4,1845.3,3.63187213]
[1746612430607,5.42034798,1844.9,1844.8,4.72143377]
[1746612430785,12.00350789,1844.9,1844.8,4.72143377]
[1746612431113,12.00350789,1844.9,1844.6,3.61473223]
[1746612431114,8.97093565,1844.7,1844.6,3.61473223]
[1746612431310,11.23349556,1844.7,1844.6,3.61473223]
[1746612431499,12.00409556,1844.7,1844.6,3.61473223]
[1746612431702,13.93914764,1844.7,1844.6,3.61473223]
[1746612431885,21.48816166,1844.7,1844.6,3.61473223]
[1746612432085,21.90322339,1844.7,1844.6,3.61473223]
[1746612433315,3.7706,1844.7,1844.6,3.61473223]
[1746612433616,13.93914764,1844.7,1844.6,3.61473223]
[1746612433794,8.51821199,1844.7,1844.6,3.61473223]
[1746612433994,13.93914764,1844.7,1844.6,3.61473223]
[1746612434304,3.7706,1844.7,1844.6,3.61473223]
[1746612434496,13.38914764,1844.7,1844.6,3.61473223]
[1746612434684,8.51821199,1844.7,1844.6,3.61473223]
[1746612434885,4.18155221,1844.7,1844.6,21.61473223]
[1746612435688,3.7706,1844.7,1844.6,27.03596176]
[1746612435907,3.0,1844.7,1844.6,21.61473223]
[1746612436113,3.0,1844.7,1844.6,18.0]
[1746612436894,7.19761199,1844.7,1844.6,18.0]
[1746612437221,3.0,1844.7,1844.6,18.0]
[1746612437420,14.01062228,1844.7,1844.6,18.0]
[1746612437632,14.81672228,1844.7,1844.6,18.0]
[1746612437838,14.81672228,1844.7,1844.5,0.6667]
[1746612438190,15.22410837,1844.7,1844.5,0.6667]
[1746612438418,8.42122953,1844.6,1844.5,0.6667]
[1746612438723,11.33576332,1844.6,1844.5,0.6667]
[1746612441690,3.55,1844.6,1844.5,0.6667]
[1746612442224,3.0,1844.6,1844.5,0.6667]
[1746612442389,3.8061,1844.7,1844.5,6.08819595]
[1746612442591,0.7611,1844.9,1844.5,6.08805631]
[1746612442795,0.7611,1844.9,1844.6,5.42103302]
[1746612443220,13.37923344,1844.9,1844.5,6.08801858]
[1746612443524,0.61813241,1844.9,1844.7,5.42080351]
[1746612443693,3.0,1845.0,1844.7,5.42080351]
[1746612444092,12.61768826,1845.0,1844.6,5.42105452]
[1746612444519,3.0,1844.8,1844.5,6.08804677]
[1746612446430,3.0,1844.8,1844.5,6.08803969]
[1746612447331,3.0,1844.8,1844.5,11.50942324]
[1746612447627,3.0,1844.8,1844.5,6.08803969]
[1746612448026,0.7611,1844.9,1844.7,5.420914]
[1746612448224,3.7611,1844.9,1844.7,5.420914]
[1746612448520,3.0,1844.9,1844.7,5.420914]
[1746612449225,0.39745183,1845.0,1844.7,5.420914]
[1746612449395,0.55,1845.0,1844.8,5.42060309]
[1746612449594,0.55,1845.0,1844.7,5.42076662]
[1746612449795,0.55,1845.0,1844.7,5.4207666]
[1746612449996,3.0,1845.1,1844.8,5.42046716]
[1746612450225,6.71605858,1845.3,1845.0,5.42004537]
[1746612450425,6.71605858,1845.3,1845.1,5.4197567]
[1746612450426,2.99085683,1845.3,1845.1,5.4197567]
[1746612450617,1.21905858,1845.3,1845.1,5.4197567]
[1746612450817,0.8162,1845.3,1845.1,5.4197567]
[1746612451214,3.8162,1845.3,1845.1,5.4197567]
[1746612451421,0.7885,1845.5,1845.2,5.41946672]
[1746612451604,3.7885,1845.5,1845.2,5.41926395]
[1746612451815,5.12895794,1845.5,1845.2,5.41926395]
[1746612452138,10.96811755,1845.7,1845.5,5.41839795]
[1746612452139,1.19546979,1845.7,1845.5,5.41839795]
[1746612452340,3.40696979,1845.7,1845.4,5.41876177]
[1746612452545,3.0,1845.7,1845.5,5.41852515]
[1746612452730,5.41770942,1845.8,1845.5,5.41852515]
[1746612452915,0.54177094,1845.7,1845.5,5.41852515]
[1746612453116,3.54177094,1845.7,1845.4,5.41868527]
[1746612453317,3.54177094,1845.7,1845.4,5.41870925]
[1746612453527,3.54177094,1845.7,1845.5,5.41852963]
[1746612453733,3.0,1845.7,1845.5,5.41852963]
[1746612453929,5.41788777,1845.8,1845.4,5.41869847]
[1746612454107,3.0,1845.7,1845.2,5.47363193]
[1746612454305,0.7885,1845.9,1845.6,5.4181166]
[1746612454505,3.7885,1845.9,1845.5,5.41838518]
[1746612454738,1.19728753,1845.9,1845.6,5.41827315]
[1746612455132,4.19728753,1845.9,1845.6,5.41827315]
[1746612455298,9.61471151,1845.9,1845.5,5.41838518]
[1746612455497,1.19728753,1845.9,1845.6,5.41813429]
[1746612455702,0.40878753,1845.9,1845.5,6.50214573]
[1746612455949,10.16480155,1846.0,1845.5,6.50214573]
[1746612456107,10.16480155,1846.0,1845.6,5.41819966]
[1746612456635,10.16480155,1846.0,1845.6,5.41806851]
[1746612457021,9.61480155,1846.0,1845.7,5.41799167]
[1746612457336,9.61480155,1846.0,1845.6,5.4181566]
[1746612457511,9.61480155,1846.0,1845.6,10.83625654]
[1746612457712,9.61480155,1846.0,1845.7,5.41796242]
[1746612458121,15.0321648,1846.0,1845.6,5.41809994]
[1746612458335,9.61480155,1846.0,1845.6,5.41809994]
[1746612459057,5.41742722,1845.9,1845.4,11.74801417]
[1746612459206,9.61540777,1845.8,1845.4,10.83741254]
[1746612459531,9.61540777,1845.8,1845.4,5.41869837]
[1746612460023,4.19761199,1845.8,1845.5,5.41842447]
[1746612460205,11.89442904,1846.0,1845.6,5.41818755]
[1746612460408,1.1894429,1845.9,1845.6,5.41812078]
[1746612461004,5.81668882,1846.0,1845.7,5.41799495]
[1746612461201,5.81668882,1846.0,1845.6,5.41812078]
[1746612461202,0.7631,1846.1,1845.8,5.41750724]
[1746612461436,9.18000364,1846.1,1845.8,5.41750724]
[1746612461839,9.18000364,1846.1,1845.7,10.83563598]
[1746612462007,5.41718555,1846.0,1845.6,6.17360656]
[1746612462203,5.41749697,1845.9,1845.6,6.17360092]
[1746612462409,9.61510896,1845.9,1845.5,5.41833867]
[1746612462622,9.61510896,1845.9,1845.5,10.83670358]
[1746612462908,15.0328081,1845.9,1845.5,5.41833867]
[1746612463232,6.11356942,1845.8,1845.5,5.41833867]
[1746612463622,0.8087,1845.7,1845.4,5.41871783]
[1746612464241,0.8087,1845.7,1845.4,5.41867068]
[1746612465040,0.8087,1845.7,1845.5,18.0]
[1746612465223,3.69582212,1845.8,1845.5,23.41840809]
[1746612465841,9.11353161,1845.8,1845.5,23.41840809]
[1746612466047,3.69582212,1845.8,1845.5,23.41840809]
[1746612467426,3.0,1845.6,1845.5,18.0]
[1746612468124,3.36958221,1845.7,1845.5,18.0]
[1746612468310,3.0,1845.7,1845.5,23.41848853]
[1746612468740,15.86197182,1845.9,1845.5,23.41848853]
[1746612468917,3.0,1845.8,1845.5,23.41838816]
[1746612469121,3.0,1845.8,1845.5,23.41837996]
[1746612469517,3.0,1845.8,1845.5,28.83678688]
[1746612469717,3.0,1845.8,1845.6,5.41829019]
[1746612470351,10.44433207,1845.9,1845.6,5.41829019]
[1746612470352,3.8292,1845.9,1845.6,5.41829019]
[1746612471657,9.24668461,1845.9,1845.6,5.41829019]
[1746612471950,3.8292,1845.9,1845.7,5.4178232]
[1746612472122,3.0,1845.9,1845.8,5.41770506]
[1746612472318,10.2,1846.2,1845.8,5.41750568]
[1746612472534,10.2,1846.2,1845.9,5.41720946]
[1746612473294,10.2,1846.2,1845.9,23.41720946]
[1746612473454,10.60219112,1846.2,1845.9,5.41720946]
[1746612474089,16.01876558,1846.2,1845.9,5.41720946]
[1746612474569,18.41406291,1846.2,1845.9,5.41720946]
[1746612475085,18.41406291,1846.2,1845.8,5.41753496]
[1746612475450,5.41734971,1846.0,1845.6,10.96508659]
[1746612475760,0.7547,1845.9,1845.6,5.41808659]
[1746612475950,4.95231199,1845.9,1845.7,5.41788546]
[1746612476150,0.7547,1845.9,1845.7,5.41788546]
[1746612477783,0.55,1846.0,1845.7,5.41788546]
[1746612477976,0.55,1846.0,1845.7,5.41783802]
[1746612478284,5.96724187,1846.0,1845.7,5.41783802]
[1746612478861,0.55,1846.0,1845.7,5.41783802]
[1746612479982,0.55,1846.0,1845.7,10.83563333]
[1746612480156,5.96720834,1846.0,1845.7,5.41779531]
[1746612480354,7.60805806,1846.0,1845.7,5.41779531]
[1746612481688,5.02431199,1846.1,1845.8,5.41758791]
[1746612481896,3.8267,1846.1,1845.9,5.41731832]
[1746612482083,3.0,1846.1,1845.9,5.41726633]
[1746612482384,10.60219112,1846.2,1845.9,5.41723997]
[1746612483050,10.60219112,1846.2,1845.9,10.83449773]
[1746612483250,10.60219112,1846.2,1845.9,5.41723997]
[1746612483751,10.60219112,1846.2,1845.9,5.41722779]
[1746612484486,16.01872826,1846.2,1845.9,5.41722779]
[1746612484663,17.87515153,1846.2,1845.9,5.41722779]
[1746612485186,9.61477191,1846.0,1845.6,10.83626185]
[1746612485359,9.61477191,1846.0,1845.7,5.4179929]
[1746612485562,10.38817191,1846.0,1845.6,5.41809889]
[1746612485753,15.80554156,1846.0,1845.6,5.41809889]
[1746612485958,11.83828382,1846.0,1845.6,5.41809889]
[1746612486159,11.83828382,1846.0,1845.7,5.41795269]
[1746612486372,11.83828382,1846.0,1845.6,5.41809889]
[1746612486576,3.55,1846.1,1845.8,5.41767065]
[1746612487260,3.0,1846.1,1845.9,5.41726995]
[1746612487471,3.0,1846.1,1845.9,23.41726995]
[1746612487672,3.0,1846.1,1845.9,18.0]
[1746612487892,8.41684317,1846.1,1845.9,18.0]
[1746612488099,3.0,1846.1,1845.9,18.0]
[1746612488666,3.0,1846.1,1845.9,23.41726077]
[1746612489567,3.0,1846.1,1845.9,5.41726077]
[1746612490596,10.2,1846.2,1846.0,5.41711809]
[1746612490761,10.2,1846.2,1846.0,5.41691627]
[1746612490968,10.2,1846.2,1846.1,5.41682465]
[1746612491190,10.40880711,1846.6,1846.2,5.41641482]
[1746612491665,3.0,1846.5,1846.2,5.41641482]
[1746612492389,8.41569418,1846.5,1846.2,5.41641482]
[1746612493103,9.61365584,1846.4,1846.0,5.41697649]
[1746612493402,4.19761199,1846.2,1845.9,5.417192]
[1746612494106,9.61423414,1846.2,1845.9,5.41740349]
[1746612494396,4.19761199,1846.2,1845.9,5.41740349]
[1746612494602,9.61417857,1846.2,1845.9,5.41740349]
[1746612495880,9.61417857,1846.2,1845.8,6.20881406]
[1746612496068,9.61417857,1846.2,1845.8,6.20881286]
[1746612496269,9.61417857,1846.2,1845.8,11.6263257]
[1746612496498,16.65325718,1846.2,1845.8,6.20881284]
[1746612496691,16.65325718,1846.2,1845.8,5.41751284]
[1746612496890,11.23650358,1846.2,1845.8,5.41751284]
[1746612497074,11.23650358,1846.2,1845.8,10.83501536]
[1746612497404,11.23650358,1846.2,1845.8,5.41750252]
[1746612497703,11.23650358,1846.2,1845.8,10.8349974]
[1746612498111,11.23650358,1846.2,1846.0,5.41709118]
[1746612498112,3.0,1846.2,1846.0,5.41709118]
[1746612498286,3.0,1846.2,1846.1,5.41682465]
[1746612498486,3.0,1846.2,1846.0,5.41709118]
[1746612498684,3.41001165,1846.3,1846.0,5.41694115]
[1746612498886,3.0,1846.3,1846.1,5.41677753]
[1746612499223,6.67748844,1846.4,1846.1,5.41677753]
[1746612499224,6.67734229,1846.4,1846.1,5.41677753]
[1746612499506,6.67734229,1846.4,1846.0,5.41692189]
[1746612499679,5.41597671,1846.4,1846.1,5.41682221]
[1746612500022,5.41627005,1846.3,1846.0,5.4169187]
[1746612500319,9.6135887,1846.4,1846.0,5.4169187]
[1746612501018,9.6135887,1846.4,1846.0,5.41690817]
[1746612501514,9.6135887,1846.4,1846.0,5.41690696]
[1746612501515,10.02562073,1846.4,1846.0,5.41690696]
[1746612501723,5.41627054,1846.3,1846.0,5.41690696]
[1746612501916,10.02573239,1846.4,1846.0,5.41690696]
[1746612502428,0.41203203,1846.4,1846.2,5.41640398]
[1746612502795,3.0,1846.5,1846.2,5.41640398]
[1746612503337,8.41574258,1846.5,1846.2,5.41640398]
[1746612503538,3.0,1846.5,1846.2,5.41640398]
[1746612504530,3.40625626,1846.5,1846.2,5.41640398]
[1746612504726,3.40625626,1846.5,1846.2,5.41636146]
[1746612505218,3.40625626,1846.5,1846.3,5.41613456]
[1746612505420,3.40625626,1846.5,1846.3,5.41618536]
[1746612505593,3.0,1846.6,1846.4,5.41594454]
[1746612505799,3.0,1846.6,1846.5,5.41558096]
[1746612506208,10.2,1846.7,1846.5,10.83104411]
[1746612506408,10.2,1846.7,1846.5,5.41546315]
[1746612506609,10.2,1846.7,1846.5,5.41544357]
[1746612506898,0.40120544,1846.8,1846.6,5.41535795]
[1746612507098,10.36850541,1846.9,1846.6,5.41535795]
[1746612507527,4.95401199,1846.9,1846.6,5.41535795]
[1746612507728,10.36856736,1846.9,1846.5,5.41544357]
[1746612508237,5.41481432,1846.8,1846.5,5.41544357]
[1746612508420,10.36856736,1846.9,1846.5,5.41544357]
[1746612508733,4.95401199,1846.9,1846.6,5.41512319]
[1746612509434,10.36852437,1846.9,1846.6,5.41512319]
[1746612510032,4.95401199,1846.9,1846.6,5.41512319]
[1746612510233,0.7564,1846.9,1846.7,5.41506449]
[1746612510419,3.66666667,1847.0,1846.7,5.41506449]
[1746612510736,4.06429319,1847.0,1846.7,10.829935]
[1746612510907,4.06429319,1847.0,1846.7,10.82975498]
[1746612511113,1.06429319,1847.0,1846.7,5.41487051]
[1746612511613,1.06429319,1847.0,1846.8,5.41464558]
[1746612511942,0.66666667,1847.0,1846.9,5.41447831]
[1746612515536,3.0,1847.2,1846.9,5.41447831]
[1746612515739,3.0,1847.2,1846.9,5.41433017]
[1746612516114,3.0,1847.2,1846.9,5.41427215]
[1746612516439,3.0,1847.2,1847.0,6.24509562]
[1746612517564,3.0,1847.2,1847.0,0.8311]
[1746612518080,3.41022325,1847.2,1846.8,6.17693543]
[1746612518368,10.84120927,1847.2,1846.8,6.17693543]
[1746612518864,3.41022325,1847.2,1846.9,5.4144263]
[1746612519470,3.0,1847.2,1847.0,5.41412458]
[1746612519777,3.0,1847.2,1847.1,5.41389204]
[1746612520269,3.0,1847.2,1847.1,6.18439204]
[1746612521074,3.0,1847.2,1847.1,0.7705]
[1746612523289,3.0,1847.2,1847.0,0.7757]
[1746612524341,3.0,1847.2,1847.0,6.18984699]
[1746612527357,3.0,1847.2,1847.0,7.27310167]
[1746612528086,3.0,1847.2,1847.0,7.27300372]
[1746612528292,3.0,1847.2,1847.1,5.41389204]
[1746612528491,0.40900368,1847.3,1847.1,5.41369041]
[1746612528785,3.0,1847.5,1847.2,5.41359896]
[1746612528991,10.2,1847.6,1847.3,5.41317079]
[1746612529186,6.18132167,1847.7,1847.5,5.41271001]
[1746612529187,10.9691,1847.7,1847.5,5.41271001]
[1746612529434,10.9691,1847.7,1847.4,5.41283368]
[1746612529585,16.38128277,1847.7,1847.4,5.41283368]
[1746612529779,16.79380715,1847.7,1847.4,5.41283368]
[1746612530026,16.79396271,1847.7,1847.3,6.20714638]
[1746612530225,16.79396271,1847.7,1847.3,12.29569114]
[1746612530391,16.79396271,1847.7,1847.4,5.4129988]
[1746612532133,11.38162438,1847.7,1847.4,10.82580716]
[1746612532427,0.7615,1847.9,1847.3,1.46939201]
[1746612532732,6.17304994,1847.9,1847.5,5.41242743]
[1746612533030,6.17304994,1847.9,1847.6,5.41238176]
[1746612533332,6.5713016,1847.9,1847.6,5.41238176]
[1746612535239,6.5713016,1847.9,1847.5,5.41242743]
[1746612535793,5.41185757,1847.8,1847.5,5.41242743]
[1746612536019,6.5713016,1847.9,1847.5,6.49496025]
[1746612536231,11.98307752,1847.9,1847.5,6.49496025]
[1746612537135,6.5713016,1847.9,1847.5,6.49496025]
[1746612537436,11.98307115,1847.9,1847.5,6.49496025]
[1746612537928,2.25881463,1847.8,1847.5,6.49496025]
[1746612538928,2.25881463,1847.8,1847.6,0.64949603]
[1746612539136,4.15975166,1847.9,1847.6,6.06182655]
[1746612539439,9.57132032,1847.9,1847.6,6.06182655]
[1746612539822,5.41188547,1847.8,1847.6,0.64949603]
[1746612540011,7.6707001,1847.8,1847.6,0.64949603]
[1746612541247,7.6707001,1847.8,1847.4,5.41290344]
[1746612541746,7.6707001,1847.8,1847.4,10.82571153]
[1746612542440,2.25881463,1847.8,1847.5,5.41267513]
[1746612542658,5.4109659,1848.1,1847.8,5.41168069]
[1746612542957,7.66978053,1848.1,1847.8,5.41168069]
[1746612543173,5.41127301,1848.0,1847.7,5.41209768]
[1746612544247,5.8137148,1848.0,1847.7,5.41209768]
[1746612544463,2.25881463,1847.9,1847.6,5.41222323]
[1746612544643,3.01731463,1847.9,1847.6,5.41222323]
[1746612547254,8.42886293,1847.9,1847.6,5.41222323]
[1746612547555,8.42889454,1847.9,1847.6,5.41222323]
[1746612547946,3.01731463,1847.9,1847.6,5.41222323]
[1746612548644,8.42886569,1847.9,1847.6,5.41222323]
[1746612550372,5.41218839,1847.7,1847.4,5.41286118]
[1746612550536,2.25881463,1847.7,1847.4,5.41280672]
[1746612551245,7.67102701,1847.7,1847.4,5.41280672]
[1746612551445,7.67097896,1847.7,1847.4,5.41280672]
[1746612551652,2.25881463,1847.7,1847.4,5.41280672]
[1746612551977,2.25881463,1847.7,1847.4,7.11872094]
[1746612554369,8.41189204,1847.8,1847.4,7.11872094]
[1746612554577,8.41189204,1847.8,1847.5,5.41253261]
[1746612555146,13.82400848,1847.8,1847.4,7.11872094]
[1746612555451,13.82400848,1847.8,1847.5,18.0]
[1746612555975,8.41189204,1847.8,1847.5,18.0]
[1746612556178,13.82401061,1847.8,1847.5,18.0]
[1746612556971,8.41189204,1847.8,1847.5,23.41271114]
[1746612557366,8.41189204,1847.8,1847.5,5.41271114]
[1746612557562,8.41189204,1847.8,1847.4,7.11871703]
[1746612558078,13.82399024,1847.8,1847.4,7.11871703]
[1746612558280,5.41240372,1847.7,1847.3,11.64641387]
[1746612558485,7.67121835,1847.7,1847.3,11.64641387]
[1746612558794,2.25881463,1847.7,1847.4,5.41292247]
[1746612559087,2.25881463,1847.7,1847.4,10.82573589]
[1746612559502,2.25881463,1847.7,1847.5,5.41270591]
[1746612560585,3.0,1847.8,1847.5,5.41260149]
[1746612560786,8.41184857,1847.8,1847.5,5.41260149]
[1746612561083,0.40244179,1848.0,1847.7,5.41188956]
[1746612561304,0.782,1848.1,1847.8,5.41172516]
[1746612561506,3.782,1848.1,1847.8,5.41172516]
[1746612561688,9.19298781,1848.1,1847.8,5.41172516]
[1746612562183,9.19298781,1848.1,1847.8,4.74505849]
[1746612562368,10.87926035,1848.1,1847.8,4.74505849]
[1746612562566,2.46827254,1848.1,1847.8,4.74505849]
[1746612562986,7.87932504,1848.1,1847.7,5.41199299]
[1746612563193,7.87932504,1848.1,1847.8,5.41182834]
[1746612564501,2.46827254,1848.1,1847.8,5.41182834]
[1746612565606,2.46827254,1848.1,1847.9,5.4114995]
[1746612565907,5.4098765,1848.5,1848.3,5.41017754]
[1746612565908,0.7855,1848.5,1848.3,5.41017754]
[1746612566858,3.44764618,1848.5,1848.2,5.41054112]
[1746612567255,0.40333155,1848.5,1848.2,0.7668]
[1746612567461,10.2,1848.6,1848.4,5.40987441]
[1746612567677,0.8004,1849.1,1848.8,5.40891389]
[1746612568014,8.46726673,1849.1,1848.7,5.40902033]
[1746612568167,3.47319439,1849.1,1848.8,5.40878623]
[1746612568504,3.47319439,1849.1,1848.7,5.40908133]
[1746612568505,8.88133726,1849.1,1848.7,5.40908133]
[1746612568795,9.6554644,1849.1,1848.7,5.40908133]
[1746612569603,0.7725,1849.3,1849.0,5.40832882]
[1746612569801,3.03131463,1849.3,1849.0,5.40832882]
[1746612569972,3.03131463,1849.3,1848.9,5.40861422]
[1746612570179,2.25881463,1849.1,1848.6,0.7614]
[1746612570380,2.25881463,1848.9,1848.7,5.40903088]
[1746612570586,2.25881463,1848.9,1848.6,0.7614]
[1746612571104,2.25881463,1848.9,1848.6,6.17075164]
[1746612571412,2.25881463,1848.9,1848.6,6.17088658]
[1746612571623,2.25881463,1848.9,1848.6,0.7614]
[1746612571920,7.66745853,1848.9,1848.6,0.7614]
[1746612572075,9.05229801,1848.9,1848.6,0.7614]
[1746612572274,3.64365411,1848.9,1848.6,6.17087053]
[1746612572505,3.64365411,1848.9,1848.6,6.17077623]
[1746612572691,3.64365411,1848.9,1848.6,6.17067346]
[1746612572892,3.64365411,1848.9,1848.6,6.22476282]
[1746612573091,2.25881463,1848.9,1848.6,6.2247917]
[1746612573620,7.66747021,1848.9,1848.5,10.88059601]
[1746612573971,2.25881463,1848.9,1848.6,5.40949001]
[1746612574480,2.25881463,1848.9,1848.5,10.88063275]
[1746612574873,2.25881463,1848.9,1848.5,10.88056593]
[1746612575072,3.10279686,1848.9,1848.5,10.88056593]
[1746612575414,8.51142972,1848.9,1848.5,10.88056593]
[1746612576002,5.40891441,1848.8,1848.5,5.471]
[1746612576407,3.05801463,1848.7,1848.3,5.4102875]
[1746612576583,8.46733857,1848.7,1848.3,5.41019651]
[1746612576985,13.87682041,1848.7,1848.3,5.41019548]
[1746612577193,2.25881463,1848.5,1848.2,6.17945866]
[1746612577675,7.66861797,1848.5,1848.2,6.17945866]
[1746612578187,5.41082254,1848.2,1847.8,6.19970389]
[1746612578385,7.66931696,1848.3,1847.9,5.41142457]
[1746612578386,7.66925899,1848.3,1847.9,5.41142457]
[1746612578704,5.41134699,1848.0,1847.6,0.8273]
[1746612578906,2.25881463,1847.9,1847.4,0.8273]
[1746612579110,2.25881463,1847.9,1847.2,0.54677375]
[1746612579111,2.25881463,1847.5,1847.2,5.96035903]
[1746612579312,2.25881463,1847.5,1847.2,5.41358528]
[1746612579478,2.25881463,1847.5,1847.0,29.68743377]
[1746612579479,2.25881463,1847.5,1847.0,10.18643377]
[1746612579675,9.59632424,1847.6,1847.1,5.41388335]
[1746612579879,5.41290375,1847.5,1847.1,5.41378896]
[1746612580201,5.41303325,1847.4,1847.0,10.13546824]
[1746612580505,0.7949,1847.3,1847.0,10.13546824]
[1746612580818,0.7949,1847.3,1847.1,18.0]
[1746612582036,6.20826244,1847.3,1847.1,18.0]
[1746612582193,5.41359896,1847.2,1847.1,18.0]
[1746612582593,5.96359896,1847.2,1847.1,18.0]
[1746612582810,7.1807851,1847.2,1847.1,18.0]
[1746612583119,1.76718614,1847.2,1847.1,18.0]
[1746612585224,7.1807851,1847.2,1847.1,18.0]
[1746612585396,11.36458164,1847.2,1847.1,18.0]
[1746612585830,12.13188164,1847.2,1847.1,18.0]
[1746612589040,5.96390962,1847.1,1846.7,10.82979645]
[1746612589245,7.77348875,1847.1,1846.7,5.4148659]
[1746612589423,7.77348875,1847.1,1846.7,10.82971045]
[1746612589624,2.35957913,1847.1,1846.8,5.41472306]
[1746612590156,7.77347601,1847.1,1846.8,5.41472306]
[1746612590359,7.77347601,1847.1,1846.7,5.41488028]
[1746612590653,0.7773476,1847.0,1846.7,5.41488028]
[1746612590862,5.41452323,1846.9,1846.6,5.41515438]
[1746612591021,4.95899654,1846.8,1846.4,5.41581767]
[1746612591225,3.7752,1846.8,1846.3,5.41604239]
[1746612591458,4.74918427,1846.8,1846.5,5.41546254]
[1746612591630,10.16396304,1846.8,1846.4,5.41577341]
[1746612591835,4.74918427,1846.8,1846.5,5.41555753]
[1746612592358,10.16396356,1846.8,1846.4,5.41578312]
[1746612592557,4.74918427,1846.8,1846.5,5.41561]
[1746612594059,10.1640569,1846.8,1846.4,5.41579553]
[1746612594362,10.1640569,1846.8,1846.5,5.41544685]
[1746612594363,4.74918427,1846.8,1846.5,5.41544685]
[1746612595242,16.16462498,1846.9,1846.7,5.41488741]
[1746612595243,10.2,1846.9,1846.7,5.41488741]
[1746612595432,3.8013,1847.0,1846.7,5.41488741]
[1746612595632,3.8013,1847.0,1846.8,5.41461069]
[1746612596245,3.8013,1847.0,1846.7,5.41487932]
[1746612596950,3.8013,1847.0,1846.6,6.22502084]
[1746612597122,4.72823,1847.0,1846.6,5.41522084]
[1746612597329,4.73379654,1846.9,1846.4,5.41574463]
[1746612597523,0.8209,1846.7,1846.3,5.41610994]